bitfinex-derivatives/quotes_ETHF0:USTF0_20251216
["timestamp","ask_amount","ask_price","bid_price","bid_amount"]
[1765912586322,0.17099,2924.7,2924.6,2.0555]
[1765912586810,0.17099,2924.7,2924.5,0.63205645]
[1765912586811,3.02089539,2925.1,2925.0,0.6283]
[1765912587404,43.82089539,2925.1,2925.0,0.6283]
[1765912587817,0.3614,2924.6,2924.5,0.63205645]
[1765912588418,0.3614,2924.6,2924.5,1.64785645]
[1765912588921,0.3614,2924.6,2924.3,0.00513075]
[1765912588922,0.87421,2924.4,2924.3,0.00513075]
[1765912589318,41.67421,2924.4,2924.3,0.00513075]
[1765912589912,47.67421,2924.4,2924.3,0.00513075]
[1765912590122,0.85465,2923.6,2923.0,0.6283]
[1765912590312,0.85465,2923.6,2923.5,0.63233038]
[1765912590914,0.51285,2923.6,2923.5,0.63233038]
[1765912591221,0.84555,2923.6,2923.5,0.63233038]
[1765912591810,0.3418,2923.6,2923.5,1.64813038]
[1765912592023,3.03426437,2924.1,2923.5,0.63233038]
[1765912592322,0.3238,2923.6,2923.5,1.64813038]
[1765912592520,0.17104,2924.0,2923.5,2.68783038]
[1765912593519,0.17104,2924.0,2923.9,1.0158]
[1765912593723,0.17104,2924.0,2923.9,2.0555]
[1765912594314,0.47474,2924.0,2923.5,0.63233038]
[1765912594826,0.2941,2923.6,2923.5,0.63233038]
[1765912595216,0.2941,2923.6,2923.5,1.51483038]
[1765912595423,0.17104,2923.9,2923.5,2.38603038]
[1765912595922,40.8,2924.4,2923.5,0.63233038]
[1765912595923,0.74065,2923.6,2923.5,0.63233038]
[1765912597020,0.73115,2923.6,2923.5,0.00403038]
[1765912597220,0.72165,2923.6,2923.5,0.00403038]
[1765912597420,41.52165,2923.6,2923.5,0.00403038]
[1765912599128,41.52165,2923.6,2923.5,0.55953038]
[1765912599525,40.97105,2923.6,2923.5,2.31323038]
[1765912599825,0.2468,2924.1,2924.0,1.438]
[1765912600219,41.21783,2924.1,2924.0,0.5555]
[1765912600620,0.64585,2923.6,2923.5,0.00403038]
[1765912601129,0.64585,2923.6,2923.5,0.55953038]
[1765912601331,0.40845,2923.6,2923.5,1.44203038]
[1765912601525,0.17105,2923.6,2923.5,2.31323038]
[1765912603527,0.2093,2923.6,2923.5,0.55953038]
[1765912604628,0.2093,2923.6,2923.5,1.44203038]
[1765912605234,0.17105,2923.7,2923.6,1.7537]
[1765912608135,0.17102,2924.3,2924.2,1.7537]
[1765912608330,0.50642,2924.3,2924.0,0.5555]
[1765912608521,0.1631,2924.1,2924.0,0.5555]
[1765912608722,40.97102,2924.3,2924.2,1.7537]
[1765912608929,0.17099,2924.7,2924.2,1.7537]
[1765912609135,0.33409,2924.7,2924.6,0.8825]
[1765912609329,0.1631,2924.6,2924.5,0.5555]
[1765912609636,40.9631,2924.6,2924.5,1.438]
[1765912610137,40.8,2924.6,2924.5,2.3092]
[1765912611545,40.971,2924.6,2924.5,0.5555]
[1765912614142,0.1177,2924.1,2924.0,1.438]
[1765912614743,0.17101,2924.4,2924.0,2.3092]
[1765912615138,0.2174,2924.1,2924.0,1.438]
[1765912615344,0.1087,2924.1,2924.0,1.438]
[1765912615538,0.1087,2924.1,2924.0,2.3092]
[1765912615839,0.0997,2923.6,2923.5,1.44203038]
[1765912616041,0.0997,2923.6,2923.5,2.31323038]
[1765912616240,0.17104,2923.9,2923.5,2.31323038]
[1765912616541,0.17104,2923.9,2923.8,1.7537]
[1765912617044,0.26184,2923.9,2923.8,0.8825]
[1765912618838,0.26184,2923.9,2923.8,1.7537]
[1765912619237,0.26184,2923.9,2923.8,0.8825]
[1765912619443,0.1284,2923.6,2923.5,0.55953038]
[1765912619746,0.29945,2923.6,2923.5,0.55953038]
[1765912620441,0.23525,2923.6,2923.5,2.31323038]
[1765912620947,0.17105,2923.6,2923.5,2.31323038]
[1765912621143,0.22645,2923.6,2923.5,2.31323038]
[1765912621343,0.21765,2923.6,2923.5,2.31323038]
[1765912621546,0.26425,2923.6,2923.5,1.44203038]
[1765912621738,0.26425,2923.6,2923.5,0.55953038]
[1765912622142,0.26425,2923.6,2923.5,0.00403038]
[1765912622446,0.26425,2923.6,2923.3,0.00513075]
[1765912622447,0.20891,2922.6,2922.5,1.438]
[1765912622745,0.17111,2922.6,2922.5,2.3092]
[1765912623246,0.17366004,2922.6,2922.5,2.31282458]
[1765912623444,0.00255004,2922.6,2922.5,2.31282458]
[1765912623743,0.00513075,2922.8,2922.7,1.6565]
[1765912624141,3.075e-05,2922.8,2922.7,1.6565]
[1765912624336,50.142,2923.6,2923.5,0.4982]
[1765912624533,50.142,2923.6,2923.5,1.2975]
[1765912624733,50.14611638,2923.6,2923.5,1.2975]
[1765912627045,50.14611638,2923.6,2923.5,2.1547]
[1765912627752,40.80411638,2923.6,2923.5,2.1547]
[1765912629241,0.00411638,2923.6,2923.5,2.1547]
[1765912635850,1.638e-05,2923.6,2923.5,2.1547]
[1765912638847,1.638e-05,2923.6,2923.5,0.4982]
[1765912639046,1.638e-05,2923.6,2922.5,0.55912458]
[1765912639047,0.2829,2922.6,2922.5,0.55912458]
[1765912639252,0.5658,2922.6,2922.5,1.35842458]
[1765912639455,0.5658,2922.6,2922.5,0.55912458]
[1765912641568,0.5658,2922.6,2922.5,1.35842458]
[1765912641949,0.2829,2922.6,2922.5,1.35842458]
[1765912642952,0.5993,2922.6,2922.5,1.35842458]
[1765912643259,0.2829,2922.6,2922.5,1.35842458]
[1765912643454,0.2829,2922.6,2922.5,2.21562458]
[1765912643756,0.75361,2922.6,2922.5,0.00362458]
[1765912644153,0.17111,2922.6,2922.5,0.50182458]
[1765912644459,41.27071,2922.6,2922.5,1.30112458]
[1765912644851,41.27071,2922.6,2922.5,0.50182458]
[1765912646656,41.27071,2922.6,2922.5,0.00362458]
[1765912648961,57.30771,2922.6,2922.5,0.00362458]
[1765912649162,57.30771,2922.6,2922.5,0.50182458]
[1765912649355,57.30771,2922.6,2922.5,0.00362458]
[1765912650460,57.30771,2922.6,2922.5,0.50182458]
[1765912651359,57.30771,2922.6,2922.5,0.00362458]
[1765912651554,0.63834,2922.1,2922.0,0.5555]
[1765912651761,18.78390256,2922.1,2922.0,0.5555]
[1765912652361,16.67534,2922.1,2922.0,0.5555]
[1765912652564,16.67534,2922.1,2922.0,0.5593807]
[1765912652862,16.67534,2922.1,2922.0,0.0038807]
[1765912654461,16.67534,2922.1,2922.0,0.4520807]
[1765912657060,0.17114,2922.1,2922.0,2.0283807]
[1765912657365,0.56174,2922.1,2922.0,2.0283807]
[1765912658060,0.17114,2922.1,2922.0,2.0283807]
[1765912658269,2.29586256,2922.4,2922.3,1.5763]
[1765912658468,2.29586256,2922.4,2922.0,0.4520807]
[1765912658469,40.97111,2922.6,2922.5,2.022]
[1765912659568,42.37669564,2922.6,2922.5,0.4457]
[1765912659872,0.3656,2922.1,2922.0,1.2451807]
[1765912660063,1.77118564,2922.1,2922.0,0.4520807]
[1765912661271,1.58838564,2922.1,2922.0,2.0283807]
[1765912661961,0.53674,2922.2,2922.1,1.5763]
[1765912662164,1.94232564,2922.2,2922.1,1.5763]
[1765912662365,1.94232564,2922.2,2922.1,0.7931]
[1765912662870,1.94232564,2922.2,2922.1,1.5763]
[1765912663368,0.53674,2922.2,2922.1,1.5763]
[1765912663575,0.35394,2922.2,2922.1,1.5763]
[1765912664071,0.17114,2922.2,2922.1,1.5763]
[1765912664567,1.40558564,2922.3,2922.2,1.5763]
[1765912664970,57.01011,2922.6,2922.5,2.022]
[1765912665171,58.41569564,2922.6,2922.5,2.022]
[1765912666171,0.1828,2922.1,2922.0,2.0283807]
[1765912666366,1.58838564,2922.1,2922.0,2.0283807]
[1765912666672,1.40558564,2922.1,2922.0,2.0283807]
[1765912667770,0.35392,2922.5,2922.4,1.5763]
[1765912667973,1.94230564,2922.5,2922.4,0.7931]
[1765912668172,1.94230564,2922.5,2922.4,1.5763]
[1765912669074,0.17112,2922.5,2922.4,1.5763]
[1765912669371,0.53672,2922.5,2922.4,1.5763]
[1765912669569,0.53672,2922.5,2922.4,0.7931]
[1765912669770,0.35392,2922.5,2922.4,1.5763]
[1765912670367,0.53672,2922.5,2922.4,1.5763]
[1765912670768,0.35392,2922.5,2922.4,1.5763]
[1765912671971,0.17112,2922.5,2922.4,1.5763]
[1765912672363,40.8,2922.6,2922.5,2.022]
[1765912672662,0.53669,2923.1,2923.0,1.2388]
[1765912672868,0.17109,2923.1,2923.0,2.022]
[1765912673076,40.8,2923.5,2923.4,1.5763]
[1765912673875,40.8,2923.5,2923.0,0.4457]
[1765912674176,40.97106,2923.5,2923.0,0.4457]
[1765912675474,0.1828,2923.1,2923.0,1.2388]
[1765912675677,0.1828,2923.1,2923.0,2.022]
[1765912675971,0.35387,2923.4,2923.3,0.7931]
[1765912676179,0.53667,2923.4,2923.3,0.7931]
[1765912676377,0.53667,2923.4,2923.3,1.5763]
[1765912676775,0.53667,2923.4,2923.3,0.7931]
[1765912677073,0.53667,2923.4,2923.0,0.4457]
[1765912677479,0.53667,2923.4,2923.3,0.7931]
[1765912677774,0.35387,2923.4,2923.3,1.5763]
[1765912677975,0.17107,2923.4,2923.3,1.5763]
[1765912678179,40.8,2923.5,2923.4,1.5763]
[1765912679977,40.8,2923.5,2923.0,0.4457]
[1765912679978,1.638e-05,2923.6,2923.5,0.4457]
[1765912680172,0.36561638,2923.6,2923.5,0.4457]
[1765912680368,0.36561638,2923.6,2923.5,1.2388]
[1765912680677,0.17102,2924.3,2924.2,1.5763]
[1765912680877,1.3258,2924.6,2924.5,2.022]
[1765912681180,0.1828,2923.6,2923.5,2.022]
[1765912681374,0.53663,2924.1,2924.0,0.4457]
[1765912681770,0.5406034,2924.1,2924.0,0.44882217]
[1765912682979,0.1750034,2924.1,2924.0,2.02512217]
[1765912683381,0.3578034,2924.1,2924.0,2.02512217]
[1765912684284,0.5406034,2924.1,2924.0,2.02512217]
[1765912684492,0.53504,2923.9,2923.8,0.00513075]
[1765912684985,0.53504,2923.9,2923.8,0.80003075]
[1765912685478,0.17104,2923.9,2923.8,1.56422885]
[1765912686588,0.0039734,2924.1,2924.0,1.9979]
[1765912687489,0.182,2923.9,2923.8,0.00952885]
[1765912687787,2.47633251,2924.1,2924.0,0.4432]
[1765912688090,0.53504,2923.9,2923.8,0.00952885]
[1765912688279,0.17104,2923.9,2923.8,1.56422885]
[1765912688784,0.0039734,2924.1,2924.0,1.9979]
[1765912689387,0.1859734,2924.1,2924.0,1.9979]
[1765912689691,0.0039734,2924.1,2924.0,2.01923806]
[1765912690278,0.17099,2924.8,2924.7,1.5547]
[1765912690585,0.17096,2925.3,2925.0,0.4432]
[1765912690781,40.8,2925.1,2925.0,1.9979]
[1765912691177,40.80406666,2925.1,2925.0,1.9979]
[1765912691382,42.20705593,2925.1,2925.0,1.9979]
[1765912691587,42.20705593,2925.1,2925.0,2.01923806]
[1765912692283,42.20705593,2925.1,2925.0,0.46453806]
[1765912692685,40.80406666,2925.1,2925.0,0.46453806]
[1765912692986,42.20705593,2925.1,2925.0,2.01923806]
[1765912693492,1.40705593,2925.1,2925.0,2.01923806]
[1765912693691,0.00406666,2925.1,2925.0,2.01923806]
[1765912693983,1.40705593,2925.1,2925.0,2.01923806]
[1765912694186,0.00406666,2925.1,2925.0,2.01923806]
[1765912694783,1.40705593,2925.1,2925.0,1.25943806]
[1765912695089,1.58905593,2925.1,2925.0,2.01923806]
[1765912695887,1.40705593,2925.1,2925.0,2.01923806]
[1765912696394,1.58905593,2925.1,2925.0,2.01923806]
[1765912697094,1.94202593,2925.1,2925.0,0.46453806]
[1765912697891,1.76002593,2925.1,2925.0,2.01923806]
[1765912699592,1.76002593,2925.1,2924.0,0.4432]
[1765912699593,0.364,2924.6,2924.0,0.4432]
[1765912699788,1.58498927,2924.1,2924.0,1.9979]
[1765912700189,1.58498927,2924.1,2924.0,1.2381]
[1765912700599,1.58498927,2924.1,2924.0,1.9979]
[1765912700800,0.182,2924.1,2924.0,1.9979]
[1765912700994,1.40298927,2924.1,2924.0,1.9979]
[1765912701495,0.17102,2924.3,2924.2,1.5547]
[1765912702392,2.10553835,2924.8,2924.5,0.4432]
[1765912703087,2.27652835,2924.8,2924.5,0.4432]
[1765912703597,0.53499,2924.7,2924.6,0.7949]
[1765912703798,0.535,2924.6,2924.5,0.4432]
[1765912706098,0.171,2924.6,2924.5,1.9979]
[1765912707496,0.00406666,2925.1,2924.5,1.203]
[1765912707701,0.18606666,2925.1,2925.0,1.2381]
[1765912708200,0.53903666,2925.1,2925.0,1.2381]
[1765912708697,0.53903666,2925.1,2925.0,1.9979]
[1765912708698,0.35703666,2925.1,2925.0,1.9979]
[1765912708904,0.17503666,2925.1,2925.0,1.9979]
[1765912709296,0.53903666,2925.1,2925.0,0.4432]
[1765912710195,0.35703666,2925.1,2925.0,1.9979]
[1765912710392,0.17503666,2925.1,2925.0,1.9979]
[1765912712114,40.80513075,2925.3,2925.2,1.5547]
[1765912712407,0.19123075,2925.3,2925.2,1.5547]
[1765912712908,0.1861,2925.1,2925.0,1.9979]
[1765912713110,0.19008129,2925.1,2925.0,1.9979]
[1765912713315,0.00398129,2925.1,2925.0,1.9979]
[1765912715397,0.3726,2924.6,2924.5,1.163]
[1765912715615,0.3726,2924.6,2924.5,0.4432]
[1765912715906,0.17101,2924.3,2924.0,0.4432]
[1765912716306,0.1863,2924.1,2924.0,1.8883]
[1765912716505,0.3726,2924.1,2924.0,0.4432]
[1765912716710,0.1863,2924.1,2924.0,1.8883]
[1765912717009,0.3726,2924.1,2924.0,0.4432]
[1765912717209,0.1863,2924.1,2924.0,1.8883]
[1765912719910,40.97102,2924.2,2924.1,1.4451]
[1765912721410,42.37518302,2924.2,2924.1,1.4451]
[1765912721612,0.35733,2924.1,2924.0,1.163]
[1765912721806,0.35733,2924.1,2924.0,1.8883]
[1765912722508,0.54363,2924.1,2924.0,1.8883]
[1765912722808,0.54364,2923.9,2923.5,0.4457]
[1765912723105,0.54365,2923.6,2923.5,0.44044337]
[1765912723306,0.1916,2923.1,2923.0,0.448]
[1765912723512,1.95844302,2923.1,2923.0,0.448]
[1765912723814,0.1916,2922.6,2922.5,1.8931]
[1765912724017,1.59975748,2922.6,2922.5,1.8957458]
[1765912724207,1.40815748,2922.6,2922.5,1.8957458]
[1765912724712,0.00399446,2922.6,2922.5,1.8957458]
[1765912725108,0.38719446,2922.6,2922.5,1.1704458]
[1765912725514,0.38719446,2922.6,2922.5,0.4506458]
[1765912726116,0.38719446,2922.6,2922.5,1.1704458]
[1765912726917,0.19559446,2922.6,2922.5,1.1704458]
[1765912727119,0.00399446,2922.6,2922.5,1.8957458]
[1765912729409,0.4014,2923.6,2923.5,1.1678]
[1765912729712,0.57245,2923.6,2923.5,0.448]
[1765912730215,0.37178,2923.3,2923.2,0.7198]
[1765912730415,0.57498595,2923.3,2923.2,0.7198]
[1765912730617,0.37428595,2923.3,2923.2,1.4451]
[1765912730811,41.17428595,2923.3,2923.2,1.4451]
[1765912731012,40.97358595,2923.3,2923.2,1.4451]
[1765912731518,40.80250595,2923.3,2923.2,1.4451]
[1765912731720,0.00250595,2923.3,2923.2,1.4451]
[1765912733214,0.40390595,2923.3,2923.0,0.448]
[1765912733409,0.2007,2923.1,2923.0,0.448]
[1765912733611,0.17108,2923.1,2923.0,1.8931]
[1765912734513,0.57248,2923.1,2923.0,0.448]
[1765912735206,0.17108,2923.1,2923.0,1.1678]
[1765912735408,0.17108,2923.1,2923.0,1.8931]
[1765912735719,0.37178,2923.1,2923.0,1.8931]
[1765912736210,0.57248,2923.1,2923.0,0.448]
[1765912736813,0.57248,2923.1,2923.0,1.1678]
[1765912737007,0.57248,2923.1,2923.0,1.8931]
[1765912737008,0.37178,2923.1,2923.0,1.8931]
[1765912737416,0.57248,2923.1,2923.0,1.1678]
[1765912740219,0.37178,2923.1,2923.0,1.8931]
[1765912741219,0.57248,2923.1,2923.0,1.1678]
[1765912741414,0.2007,2922.6,2922.5,1.1704458]
[1765912741719,0.37181,2922.7,2922.6,1.4451]
[1765912741921,0.17111,2922.7,2922.6,1.4451]
[1765912742620,0.17358595,2923.3,2923.0,1.1733]
[1765912742917,0.17358595,2923.3,2923.2,1.4451]
[1765912744113,0.00250595,2923.3,2923.2,1.4451]
[1765912744717,0.37427595,2923.3,2923.2,1.4451]
[1765912745026,0.37168,2923.1,2923.0,1.9439]
[1765912745824,0.17108,2923.1,2923.0,1.9439]
[1765912747118,0.37168,2923.1,2923.0,1.2053]
[1765912747323,0.57228,2923.1,2923.0,1.2053]
[1765912747519,0.57228,2923.1,2923.0,1.9439]
[1765912747720,0.37168,2923.1,2923.0,1.9439]
[1765912747921,0.37168,2923.1,2923.0,0.448]
[1765912747922,0.57228,2923.1,2923.0,0.448]
[1765912748525,0.37171,2922.7,2922.6,1.4959]
[1765912748830,0.57231,2922.7,2922.6,1.4959]
[1765912749237,0.57231,2922.7,2922.6,0.7573]
[1765912749427,0.57231,2922.7,2922.6,1.4959]
[1765912750232,0.57231,2922.7,2922.6,0.7573]
[1765912750927,0.57231,2922.7,2922.6,1.4959]
[1765912751929,0.17111,2922.7,2922.6,1.4959]
[1765912752126,1e-05,2922.7,2922.6,1.4959]
[1765912752527,0.17357595,2923.3,2923.2,1.4959]
[1765912755036,0.00250595,2923.3,2923.2,1.4959]
[1765912755236,5.95e-06,2923.3,2923.2,1.4959]
[1765912755651,0.17104,2923.9,2923.8,1.4959]
[1765912756542,40.97383072,2923.9,2923.8,1.4959]
[1765912757146,40.97383072,2923.9,2923.0,0.4753]
[1765912757443,40.97383072,2923.9,2923.8,0.7573]
[1765912758440,40.97383072,2923.9,2923.8,1.4959]
[1765912759443,0.17104,2923.8,2923.0,0.4753]
[1765912760232,1.68804,2923.8,2923.7,0.7573]
[1765912761246,56.82479072,2923.9,2923.0,0.4753]
[1765912761444,2.38952599,2923.7,2922.5,0.4506458]
[1765912761945,1.68808,2923.2,2922.5,0.4506458]
[1765912763348,3.90652599,2923.2,2922.5,0.4506458]
[1765912763653,1.6881,2922.8,2922.7,0.7573]
[1765912763950,1.68811,2922.6,2922.5,0.0026458]
[1765912764150,42.48811,2922.6,2922.5,0.0026458]
[1765912771553,1.517,2922.4,2921.5,0.4753]
[1765912771851,4.05760669,2922.0,2921.9,1.4959]
[1765912772252,2.89790669,2922.0,2921.9,1.4959]
[1765912772555,2.89790669,2922.0,2921.9,1.50027503]
[1765912774446,1.497,2921.8,2921.0,0.4753]
[1765912774651,1.497,2921.8,2920.5,4.76975577]
[1765912774652,2.10880669,2921.1,2920.5,0.4753]
[1765912774848,3.60580669,2920.7,2919.8,4.29445577]
[1765912775049,2.10880669,2920.7,2920.6,1.5164]
[1765912775449,10.661,2921.0,2920.9,1.5164]
[1765912775653,51.0058,2921.0,2920.9,1.5164]
[1765912775849,40.80265468,2921.0,2920.9,1.5164]
[1765912776050,0.00265468,2921.0,2920.9,7.5164]
[1765912776245,2.27994669,2922.2,2921.8,1.5164]
[1765912776445,3.00474669,2922.2,2922.1,0.7408]
[1765912776644,3.00474669,2922.2,2922.1,1.5164]
[1765912777058,43.80474669,2922.2,2922.1,1.5164]
[1765912777257,43.80898259,2922.2,2922.1,1.5164]
[1765912777651,43.80898259,2922.2,2922.1,0.7408]
[1765912777852,43.80898259,2922.2,2921.5,0.4545]
[1765912778755,2.10880669,2921.8,2921.0,0.4545]
[1765912779048,2.10880669,2921.9,2921.0,0.4545]
[1765912779251,3.56730669,2921.9,2921.8,0.7408]
[1765912779549,1.4585,2921.9,2921.0,0.4545]
[1765912779752,1.4585,2921.9,2921.8,0.7408]
[1765912780149,1.4585,2921.9,2921.0,0.4545]
[1765912781160,1.62965,2921.9,2921.0,0.4545]
[1765912781361,0.89595,2921.9,2921.8,1.5164]
[1765912781958,40.8042359,2922.2,2922.1,0.7408]
[1765912782456,40.9753759,2922.2,2921.5,0.437]
[1765912784364,0.471,2922.0,2921.5,0.437]
[1765912785763,0.471,2922.0,2921.0,0.4545]
[1765912786866,1.9295,2922.0,2921.9,0.7408]
[1765912787367,0.7248,2922.0,2921.9,1.5164]
[1765912787567,1.4585,2922.0,2921.9,0.7408]
[1765912787759,1.4585,2922.0,2921.9,1.5164]
[1765912788060,1.4585,2922.0,2921.9,0.7408]
[1765912788461,1.4585,2922.0,2921.9,1.5164]
[1765912789865,0.89594,2922.1,2922.0,1.5164]
[1765912790060,0.471,2922.0,2921.5,0.437]
[1765912790262,0.471,2922.0,2921.0,0.4545]
[1765912790564,1.9295,2922.0,2921.9,0.7408]
[1765912790770,0.17114,2922.1,2922.0,1.5164]
[1765912791267,0.89594,2922.1,2922.0,1.5164]
[1765912791662,40.8042359,2922.2,2922.1,1.5164]
[1765912791869,1.4627359,2922.2,2922.1,0.7408]
[1765912792063,1.4627359,2922.2,2922.1,1.5164]
[1765912792263,42.2627359,2922.2,2922.1,0.7408]
[1765912792463,41.5290359,2922.2,2922.1,1.5164]
[1765912793569,41.5290359,2922.2,2921.2,4.29445577]
[1765912794467,41.7001759,2922.2,2921.2,4.29445577]
[1765912795970,0.64215,2922.0,2921.2,4.29445577]
[1765912796268,0.64215,2922.0,2921.0,4.92016577]
[1765912796472,0.17116,2921.9,2921.0,0.4545]
[1765912797963,1.62966,2921.9,2921.8,1.5164]
[1765912798170,1.62966,2921.9,2921.8,0.7408]
[1765912798571,1.62966,2921.9,2921.0,0.4545]
[1765912800279,0.17116,2921.8,2921.0,0.4545]
[1765912800774,0.17116,2921.8,2921.7,1.5164]
[1765912800977,16.7540359,2922.2,2922.1,1.5164]
[1765912801374,17.4877359,2922.2,2922.1,1.5164]
[1765912801573,17.4877359,2922.2,2921.5,0.4403]
[1765912801574,0.7248,2921.6,2921.5,1.5164]
[1765912801874,1.4585,2921.6,2921.5,1.5164]
[1765912802378,0.471,2921.5,2921.0,0.4545]
[1765912802575,1.9295,2921.5,2921.0,0.4545]
[1765912802769,1.9295,2921.5,2921.4,0.7408]
[1765912803572,1.62967,2921.7,2921.6,1.5164]
[1765912804478,0.89597,2921.7,2921.6,1.5164]
[1765912804875,0.7873359,2922.2,2922.1,1.5301]
[1765912805376,0.4653,2922.0,2921.1,4.53315856]
[1765912805580,0.4653,2922.0,2921.0,0.4545]
[1765912806277,0.63645,2922.0,2921.0,0.4545]
[1765912806671,0.63645,2922.0,2921.0,4.74895577]
[1765912806872,2.19975,2922.0,2921.9,0.7704]
[1765912807068,2.19975,2922.0,2921.9,1.5301]
[1765912807267,0.17115,2922.0,2921.9,1.5301]
[1765912807777,0.7873359,2922.2,2922.1,1.5301]
[1765912807974,0.0042359,2922.2,2922.1,1.5301]
[1765912809175,0.7873359,2922.2,2922.1,1.5301]
[1765912809379,0.0042359,2922.2,2922.1,1.5301]
[1765912809976,0.26521,2923.0,2922.9,1.5301]
[1765912811077,0.26855968,2923.0,2922.9,1.53323454]
[1765912811377,1.83185968,2923.0,2922.9,0.77353454]
[1765912811573,1.83185968,2923.0,2922.9,1.53323454]
[1765912811776,1.05165968,2923.0,2922.9,1.53323454]
[1765912812173,0.26855968,2923.0,2922.9,1.53323454]
[1765912815073,2.29715968,2923.0,2922.9,0.00313454]
[1765912816079,2.46824968,2923.0,2922.9,0.00313454]
[1765912816275,0.26855968,2923.0,2922.9,1.53323454]
[1765912816467,1.05165968,2923.0,2922.9,0.77353454]
[1765912816779,0.4653,2922.5,2921.1,4.29445577]
[1765912817181,0.4653,2922.5,2921.0,7.71595577]
[1765912817480,40.8,2922.4,2921.0,7.71595577]
[1765912817677,1.5633,2921.8,2921.7,0.77553075]
[1765912818469,1.5633,2921.8,2921.7,0.00513075]
[1765912818868,1.5633,2921.8,2921.7,0.77553075]
[1765912819075,1.5633,2921.8,2921.7,0.00513075]
[1765912819278,1.73446,2921.8,2921.7,0.00513075]
[1765912820077,0.17116,2921.8,2921.7,1.53523075]
[1765912820475,0.95426,2921.8,2921.7,1.53523075]
[1765912820782,1.73446,2921.8,2921.7,0.77553075]
[1765912821181,1.73446,2921.8,2921.7,1.53523075]
[1765912821783,1.73446,2921.8,2921.7,0.77553075]
[1765912822082,1.5633,2921.8,2921.7,0.77553075]
[1765912822383,0.7831,2921.8,2921.7,1.53523075]
[1765912822575,1.5633,2921.8,2921.7,1.53523075]
[1765912822978,1.5633,2921.8,2921.7,0.00513075]
[1765912823377,1.5633,2921.8,2921.7,0.77553075]
[1765912826383,1.5633,2921.8,2921.7,1.53523075]
[1765912827386,2.0286,2922.0,2921.9,1.5301]
[1765912827683,2.0286,2922.0,2921.9,0.7704]
[1765912827886,1.5633,2921.8,2921.7,1.53523075]
[1765912828774,1.73444,2922.2,2922.1,0.7704]
[1765912829285,1.5633,2921.8,2921.7,1.53523075]
[1765912829487,1.5633,2921.8,2921.7,0.00513075]
[1765912829686,1.5633,2921.8,2921.7,0.77553075]
[1765912830686,1.5633,2922.0,2921.9,1.5301]
[1765912830986,1.5633,2922.0,2921.9,0.7704]
[1765912831187,2.0286,2922.0,2921.9,0.7704]
[1765912831589,1.2484,2922.0,2921.9,1.5301]
[1765912831785,1.2484,2922.0,2921.7,0.00513075]
[1765912831786,1.5633,2921.8,2921.7,0.77553075]
[1765912832086,1.5633,2921.8,2921.7,0.00513075]
[1765912834283,1.5633,2921.8,2921.7,0.77553075]
[1765912834483,0.17116,2921.8,2921.7,1.54233075]
[1765912834690,56.99013,2922.4,2921.7,1.54233075]
[1765912835093,0.17113,2922.3,2921.7,1.54233075]
[1765912836896,1.5297,2921.8,2921.7,0.77553075]
[1765912837894,1.5297,2921.8,2921.7,0.00513075]
[1765912839896,1.5297,2921.8,2921.7,0.75853075]
[1765912840091,1.5297,2921.8,2921.7,0.00513075]
[1765912840297,1.5297,2921.8,2921.7,0.75853075]
[1765912841199,1.70086,2921.8,2921.7,0.00513075]
[1765912841393,1.70086,2921.8,2921.7,1.53523075]
[1765912841898,1.70086,2921.8,2921.7,0.75853075]
[1765912842099,1.70086,2921.8,2921.7,0.00513075]
[1765912843198,1.70086,2921.8,2921.7,0.75853075]
[1765912843498,0.94156,2921.8,2921.7,1.53523075]
[1765912843793,1.70083,2922.3,2922.2,0.7534]
[1765912843998,0.94153,2922.3,2922.2,1.5301]
[1765912846195,0.1711,2922.9,2922.4,1.5301]
[1765912846595,40.8,2922.8,2922.7,1.5301]
[1765912846790,0.9415,2922.9,2922.8,1.5301]
[1765912847191,1.03895968,2923.0,2922.9,1.5301]
[1765912847393,43.03705968,2923.0,2922.5,0.4532]
[1765912847599,43.03705968,2923.0,2922.9,1.5301]
[1765912847786,0.26855968,2923.0,2922.9,1.5301]
[1765912849701,1.79825968,2923.0,2922.9,1.5301]
[1765912850013,1.03895968,2923.0,2922.9,1.5301]
[1765912851308,1.79825968,2923.0,2922.9,1.5301]
[1765912851512,0.26855968,2923.0,2922.9,1.5301]
[1765912852115,1.03895968,2923.0,2922.9,1.5301]
[1765912853313,0.26855968,2923.0,2922.9,1.5301]
[1765912854405,1.03895968,2923.0,2922.9,1.5301]
[1765912855418,0.26855968,2923.0,2922.9,1.5301]
[1765912855612,0.7704,2923.5,2923.4,1.5301]
[1765912855812,0.60989,2923.0,2922.5,0.4532]
[1765912856018,2.13959,2923.0,2922.9,0.7534]
[1765912856418,2.13959,2923.0,2922.0,0.4532]
[1765912856612,2.9344842,2922.7,2922.0,0.4532]
[1765912856818,1.4047842,2922.4,2921.7,0.00513075]
[1765912857011,1.5759142,2922.4,2921.7,0.00513075]
[1765912858014,0.00513075,2922.8,2922.6,1.5301]
[1765912858015,0.7704,2922.7,2922.6,1.5301]
[1765912859524,1.5297,2922.7,2922.6,1.5301]
[1765912859921,1.5297,2922.7,2922.0,0.4532]
[1765912860229,1.5297,2922.1,2922.0,0.7534]
[1765912860735,0.7704,2921.8,2921.7,1.53523075]
[1765912861619,1.9685,2922.0,2921.9,0.7534]
[1765912861928,1.5297,2921.8,2921.7,0.00513075]
[1765912864823,1.5297,2921.8,2921.7,0.75853075]
[1765912865028,2.15815,2922.0,2921.9,0.7371]
[1765912865229,2.15815,2922.0,2921.9,1.5308]
[1765912865531,2.15815,2922.0,2921.9,0.7371]
[1765912867325,0.7959,2922.0,2921.9,1.5308]
[1765912867521,40.8,2922.4,2921.9,1.5308]
[1765912867924,40.8,2922.4,2922.3,0.7371]
[1765912868228,1.5482,2922.4,2922.3,1.5308]
[1765912869126,1.5482,2922.4,2922.3,0.7371]
[1765912870035,1.5482,2921.8,2921.7,0.74223075]